Cogmind - Beta 16 @@@ ROGUE MODE // 2026.01.20 @ 18:47:28 Player: YoKa Result: Destroyed by Y-45 Defender with Heavy Assault Rifle Performance ------------- Evolutions (2) 1000 Regions Visited (3) 600 Robots Destroyed (37) 185 Value Destroyed (803) 803 Prototype IDs (3) 60 Alien Tech Used (0) 0 Bonus (0) 0 TOTAL SCORE: 2648 Bonus ------- None Cogmind --------- Core Integrity 0/550 Matter 300/300 Energy 100/100 System Corruption 3% Temperature Cool (9) Movement Walking (120) Location -8/Materials Parts ------- > --- POWER (1) -------- (None) > --- PROPULSION (4) --- Aluminum Leg > --- UTILITY (4) ------ Power Shielding > --- WEAPON (2) ------- (None) > --- INVENTORY (5) ---- Signal Interpreter Reaction Control System Heavy Particle Gun Heavy Particle Gun Faulty Heavy Particle Gun Peak State ------------ > --- POWER ------------ Improved Ion Engine > --- PROPULSION ------- Airjet Airjet Airjet Airjet > --- UTILITY ---------- Small Storage Unit Visual Processing Unit Power Shielding > --- WEAPON ----------- Precision Beam Rifle Mini Grenade Launcher > --- INVENTORY -------- Signal Interpreter Heavy Particle Gun Heavy Particle Gun Heavy Particle Gun [Rating: 25] Favorites ----------- Power Heavy Ion Engine Engine Heavy Ion Engine Propulsion Aluminum Leg Leg Aluminum Leg Wheel Wheel Hover Unit Hover Unit Flight Unit Flight Unit Utility Small Storage Unit Device Sensor Array Storage Small Storage Unit Processor Visual Processing Unit Protection Power Shielding Weapon Mini Grenade Launcher Energy Gun EM Pulse Gun Energy Cannon Particle Cannon Ballistic Gun Assault Rifle Launcher Mini Grenade Launcher Build | -11 -10 -9 -8 ------- Run | Yrd Mat Mat Mat Slots Evolved 4 | . . 2 2 Power . | . . . . Propulsion 2 | . . 2 . Utility 2 | . . . 2 Weapon . | . . . . Parts Attached 34 | 6 5 8 15 Power 5 | 1 1 1 2 Engine 5 | 1 1 1 2 Core . | . . . . Reactor . | . . . . Propulsion 11 | 2 . 3 6 Treads . | . . . . Leg 3 | 2 . . 1 Wheel 1 | . . 1 . Hover 6 | . . 2 4 Flight 1 | . . . 1 Utility 5 | 1 1 1 2 Device 2 | . 1 1 . Storage 1 | 1 . . . Processor 1 | . . . 1 Hackware . | . . . . Protection 1 | . . . 1 Artifact . | . . . . Weapon 13 | 2 3 3 5 Energy Gun 6 | 1 1 . 4 Energy Cannon 2 | . . 2 . Ballistic Gun 1 | 1 . . . Ballistic Cannon . | . . . . Launcher 4 | . 2 1 1 Special Weapon . | . . . . Impact Weapon . | . . . . Slashing Weapon . | . . . . Piercing Weapon . | . . . . Special Melee Weapon . | . . . . Unidentified Prototypes 3 | . . 1 2 Parts Lost 23 | . . 6 17 Power 4 | . . . 4 Propulsion 8 | . . 3 5 Utility 3 | . . 1 2 Weapon 8 | . . 2 6 Highest Loss Streak 6 | . . 4 6 To Critical Strikes . | . . . . Average Backups 5 | 2 5 6 5 Power 1 | . 1 2 . Propulsion . | . . . . Utility 2 | . 1 2 2 Weapon 1 | . 2 1 1 Tool/Special . | . . . . Unused Backups 15 | . 3 5 7 Power 2 | . 1 1 . Propulsion . | . . . . Utility 7 | . . 3 4 Weapon 6 | . 2 1 3 Tool/Special . | . . . . Average Slot Usage (%) 71 | . 95 71 52 Engine 10 | . 14 11 7 Leg 11 | . 28 10 . Hover 5 | . . 5 10 Device 7 | . 9 10 3 Storage 11 | . 14 11 8 Protection 1 | . . . 4 Energy Gun 8 | . 21 2 5 Energy Cannon 4 | . . 8 3 Launcher 8 | . 5 11 6 Peak Build Rating 25 | 6 10 12 25 Average Rating 9 | 5 7 10 12 On Entrance 6 | . 6 10 10 Avg Prop Armor Cover (%) . | . . . . Naked Turns . | . . . . Heaviest Build 19 | 14 16 19 19 Greatest Support 32 | 20 20 20 32 Greatest Overweight (x) 6 | 1 . 6 4 Average Overweight (x) . | . . . . Largest Inventory Capacity 8 | 8 8 8 8 Average Capacity 7 | 7 8 8 7 Most Carried 8 | 5 8 8 8 Average Carried 5 | 2 5 6 5 Final Capacity 8 | 8 8 8 5 Final Carried 8 | 2 8 5 5 Class Distribution -------------------- 100% | Mutant Dominant Class ---------------- Mutant | -10/Materials Mutant | -9/Materials Mutant | -8/Materials Resources | -11 -10 -9 -8 ----------- Run | Yrd Mat Mat Mat Matter Collected 780 | 278 20 157 325 Remotely . | . . . . Salvage Created 864 | 30 80 442 312 Parts 73 | 3 11 31 28 Haulers Intercepted . | . . . . Recyclers Shooed 1 | . . 1 . Parts Field Recycled . | . . . . Retrieved Matter . | . . . . Parts Self-Destructed . | . . . . Prevented . | . . . . Parts Restored . | . . . . Kills | -11 -10 -9 -8 ------- Run | Yrd Mat Mat Mat Combat Hostiles Destroyed 23 | . . 10 13 Guns 7 | . . 1 6 Cannons 5 | . . 4 1 AOE 11 | . . 5 6 Classes Destroyed 10 | 1 1 6 2 Worker 1 | . . 1 . Builder 8 | . 3 3 2 Tunneler 1 | 1 . . . Recycler 2 | . . 2 . Watcher 2 | . . 2 . Swarmer 9 | . . 3 6 Cutter 2 | . . . 2 Grunt 8 | . . 4 4 Sentry 3 | . . 3 . Hunter 1 | . . . 1 Best Kill Streak 7 | 1 2 7 4 Combat Bots Only 5 | . . 5 4 Max Kills in Single Turn 2 | 1 1 2 2 Gunslinging . | . . . . Exploded 2 | . . 2 1 Melee . | . . . . Uniques/NPCs Destroyed . | . . . . Combat | -11 -10 -9 -8 -------- Run | Yrd Mat Mat Mat Hostile Shots Fired 282 | . 14 94 174 Missed 83 | . 5 33 45 Hits 199 | . 9 61 129 Melee 3 | . . . 3 Projectile 196 | . 9 61 126 AOE 1 | . . . 1 Critical Strikes 3 | . . 1 2 Damage Taken 2578 | . 97 857 1624 Core 870 | . 28 281 561 Absorbed by Shields . | . . . . Redirected to Shielding 36 | . . . 36 Core Remaining (%) 72 | 100 88 29 . Volleys Fired 109 | 6 6 50 47 Largest 2 | 2 2 1 2 Hottest 116 | 60 80 68 116 Shots Fired 127 | 12 12 50 53 Gun 61 | 12 12 10 27 Cannon 34 | . . 23 11 Launcher 32 | . . 17 15 Special . | . . . . Kinetic 6 | 6 . . . Thermal 62 | . 6 23 33 Explosive 32 | . . 17 15 Electromagnetic 27 | 6 6 10 5 Robot Hit Streak 6 | 2 5 4 6 Robot Miss Streak 4 | 2 4 4 3 Penetration Max . | . . . . Secondary Targets . | . . . . Shots Hit Robots 66 | 6 6 25 29 Core Hits 59 | 1 3 29 26 Critical Kills . | . . . . Critical Parts Destroyed . | . . . . Critical Strikes 5 | . . 1 4 Burn 4 | . . . 4 Corrupt 1 | . . 1 . Melee Attacks . | . . . . Impact . | . . . . Slashing . | . . . . Piercing . | . . . . Sneak Attacks . | . . . . Combat Hostiles . | . . . . Follow-up Attacks . | . . . . Damage Inflicted 2512 | 82 168 1186 1076 Guns 528 | 82 88 31 327 Cannons 389 | . . 286 103 Explosions 1561 | . 60 855 646 Melee . | . . . . Ramming 34 | . 20 14 . Kinetic 67 | 67 . . . Thermal 742 | . 96 286 360 Explosive 1501 | . . 855 646 Electromagnetic 168 | 15 52 31 70 Impact . | . . . . Slashing . | . . . . Piercing . | . . . . Highest Corruption 3 | . . . 3 Average Corruption 3 | . . . 3 Corruption Purged . | . . . . Corruption Blocked . | . . . . Effects 1 | . . . 1 Data Loss (major) 1 | . . . 1 Overload Shots . | . . . . Overflow Damage 35 | . . 30 5 Projectiles 9 | . . 8 1 Explosions 26 | . . 22 4 Melee . | . . . . Knockbacks 1 | . 1 . . Impact 1 | . 1 . . Kinetic . | . . . . Secondary . | . . . . Self-Inflicted Damage 136 | . 22 73 41 Shots 7 | . 1 4 2 Rammed . | . . . . Targets Rammed 4 | . 2 2 . Kicked 4 | . 2 2 . Crushed . | . . . . Highest Temperature 214 | . 54 158 214 Average Temperature 60 | . 22 49 81 Received Heat Transfer 471 | . 6 258 207 Siege Activations . | . . . . Martial Activations . | . . . . Shielding Activations . | . . . . Robots Disrupted . | . . . . Combat Hostiles . | . . . . Robots Corrupted . | . . . . Combat Hostiles . | . . . . Parts Fried 1 | . . . 1 Impact Corruptions . | . . . . Robots Melted . | . . . . Combat Hostiles . | . . . . Parts Melted 4 | . 1 . 3 Heat Transferred 1729 | . 175 518 1036 Parts Sabotaged . | . . . . Parts Stolen . | . . . . Parts Stripped . | . . . . Power Chain Reactions 1 | . 1 . . Alert | -11 -10 -9 -8 ------- Run | Yrd Mat Mat Mat Maximum Alert Level 1 | . . 1 1 Low Security (%) 72 | 100 100 46 79 Level 1 27 | . . 53 20 Level 2 . | . . . . Level 3 . | . . . . Level 4 . | . . . . Level 5 . | . . . . High Security . | . . . . Max Security . | . . . . Peak Influence 312 | 5 43 298 312 Initial 96 | . . . 96 Average 111 | . 7 177 137 Influence Increases 1164 | 5 73 550 536 Destroy 0b10 Robot/C 460 | . . 200 260 Destroy 0b10 Robot/NC 70 | 5 15 40 10 Destroy Leader 104 | . . 54 50 Successful Hack 68 | . 12 34 22 Disable Machine 90 | . 15 60 15 Destroy Structure 162 | . 1 87 74 Partial Spotted 15 | . . 15 . Lose Combat Pursuer 195 | . 30 60 105 Influence Decreases 900 | 5 73 321 501 Entered New Map 133 | . . . 133 Time Decay 537 | 5 73 261 198 Lost Part 230 | . . 60 170 Squads Dispatched 4 | . . . 4 Investigation . | . . . . Extermination . | . . . . Reinforcement 3 | . . . 3 Assault . | . . . . Garrison 1 | . . . 1 Intercept . | . . . . Searches Triggered . | . . . . Construction Impeded . | . . . . Haulers Reinforced . | . . . . Active Scanning Responses . | . . . . Cargo Convoy Interrupts . | . . . . Stealth | -11 -10 -9 -8 --------- Run | Yrd Mat Mat Mat Distress Signals 5 | . 1 3 1 Communications Jammed . | . . . . Distress Signals . | . . . . Times Spotted 51 | . 8 16 27 Peak Tracking Total 12 | . 4 6 12 Tactical Retreats 9 | . 1 3 5 Traps | -11 -10 -9 -8 ------- Run | Yrd Mat Mat Mat Traps Triggered . | . . . . Indirectly . | . . . . Trap Hack Attempts . | . . . . Triggered . | . . . . Disarmed . | . . . . Reprogrammed . | . . . . Reused . | . . . . Traps Extracted . | . . . . Installed . | . . . . Triggered . | . . . . Objects Rigged 1 | . . . 1 Machines | -11 -10 -9 -8 ---------- Run | Yrd Mat Mat Mat Machines Disabled 6 | . 1 4 1 Max in Single Turn 1 | . 1 1 1 Machines Repaired . | . . . . Machines Dismantled . | . . . . Machines Sabotaged . | . . . . Overloaded Fab Kills . | . . . . Hacking | -11 -10 -9 -8 --------- Run | Yrd Mat Mat Mat Machines Accessed 10 | . 1 6 3 Terminals 8 | . 1 5 2 Fabricators . | . . . . Repair Stations . | . . . . Recycling Units 1 | . . . 1 Scanalyzers 1 | . . 1 . Garrison Access . | . . . . Total Hacks 30 | . 5 16 9 Successful 21 | . 4 11 6 Failed 8 | . 1 4 3 Catastrophic 1 | . . 1 . Database Lockouts 1 | . . 1 . Manual 22 | . 3 10 9 Terminals 20 | . 5 10 5 Fabricators . | . . . . Repair Stations . | . . . . Recycling Units 4 | . . . 4 Scanalyzers 6 | . . 6 . Garrison Access . | . . . . Terminal Hacks 6 | . 2 4 . Emergency Access Points 1 | . . 1 . Terminal Index 1 | . . 1 . Fabricator Index 1 | . . 1 . Scanalyzer Index 1 | . . 1 . Locate Traps 1 | . 1 . . Zone Layout 1 | . 1 . . Fabricator Hacks . | . . . . Repair Station Hacks . | . . . . Recycling Unit Hacks 1 | . . . 1 Report Inventory 1 | . . . 1 Scanalyzer 4 | . . 4 . Insert Component 1 | . . 1 . Analyze 1 | . . 1 . Retrieve Study 2 | . . 2 . Garrison Access Hacks . | . . . . Unauthorized Hacks 10 | . 2 3 5 Terminals 7 | . 2 3 2 Track 1 | . 1 . . Botnet 4 | . 1 3 . Detonate 2 | . . . 2 Fabricators . | . . . . Repair Stations . | . . . . Recycling Units 3 | . . . 3 Monitor 1 | . . . 1 Recyclers 1 | . . . 1 Mask 1 | . . . 1 Scanalyzers . | . . . . Garrison Access . | . . . . Data Cores Recovered . | . . . . Used . | . . . . Hacking Detections 8 | . 1 6 1 Full Trace Events 1 | . . 1 . Feedback Events . | . . . . Feedback Blocked . | . . . . Robot Schematics Acquired . | . . . . Robots Built . | . . . . Authchips . | . . . . Time . | . . . . Total Robot Build Rating . | . . . . Part Schematics Acquired 1 | . . 1 . Parts Built . | . . . . Authchips . | . . . . Time . | . . . . Total Part Build Rating . | . . . . Part Studies Acquired 2 | . . 2 . Parts Repaired . | . . . . Time . | . . . . Parts Recycled . | . . . . Recycled Matter . | . . . . Retrieved Matter . | . . . . Retrieved Components . | . . . . Parts Scanalyzed 1 | . . 1 . Part Schematics Acquired 1 | . . 1 . Parts Damaged . | . . . . Bothacking | -11 -10 -9 -8 ------------ Run | Yrd Mat Mat Mat Used RIF Installer . | . . . . Robots Hacked . | . . . . Non-combat . | . . . . Combat . | . . . . Robot Hacks Applied . | . . . . Relay Couplers Released . | . . . . Fabnet Peak Effective % . | . . . . Robots Rewired . | . . . . Allies Hacked . | . . . . Hacks Repelled . | . . . . Allies | -11 -10 -9 -8 -------- Run | Yrd Mat Mat Mat Total Allies . | . . . . Largest Group . | . . . . Highest-Rated Group . | . . . . Highest-Rated Ally . | . . . . Total Orders . | . . . . Ally Attacks . | . . . . Total Damage . | . . . . Kills . | . . . . Allies Corrupted . | . . . . Allies Melted . | . . . . Intel | -11 -10 -9 -8 ------- Run | Yrd Mat Mat Mat Active Infowar (turns) 1045 | . 222 598 225 Optics 93 | . . . 93 Sensors 564 | . . 432 132 Structural 388 | . 222 166 . Robot Analysis Total . | . . . . Derelict Logs Recovered . | . . . . Drone Launches . | . . . . Drone Recoveries . | . . . . Exploration | -11 -10 -9 -8 ------------- Run | Yrd Mat Mat Mat Turns Passed 1539 | 168 328 637 406 Spaces Moved 897 | 116 238 347 196 Core 34 | 9 . 11 14 Treads . | . . . . Legs 511 | 107 238 156 10 Wheels 34 | . . 34 . Hover 306 | . . 146 160 Flight 12 | . . . 12 Fastest Speed 48 | 50 120 95 48 Average Speed 121 | 117 120 134 102 Slowest Speed 350 | 120 120 350 280 Overloaded Moves . | . . . . Propulsion Burnouts . | . . . . Robots Hopped . | . . . . Potential Cave-ins 2 | . . . 2 Cave-ins Triggered . | . . . . Exploration Rate (%) 28 | 6 43 32 32 Regions Visited 3 Branch Regions . Pre-discovered Areas . | . . . . Known Exits Taken . | . . . . Unknown Exits Taken 3 | 1 1 1 . Scrap Searched . | . . . . Spaces Dug 17 | . . . 17 Terrain Destroyed 188 | . 1 86 101 Melee . | . . . . Projectile . | . . . . AOE 188 | . 1 86 101 Terrain Rammed . | . . . . Walls Destroyed . | . . . . Machines Disabled . | . . . . Actions | -11 -10 -9 -8 --------- Run | Yrd Mat Mat Mat Total 1223 | 135 269 472 347 Wait 118 | . . 48 70 Move 894 | 115 237 346 196 Hop . | . . . . Pick Up 45 | 8 13 8 16 Fast Attach 4 | . . 2 2 Attach 27 | 6 1 6 14 Detach 1 | . . 1 . Swap 5 | . 4 1 . Drop 16 | . 6 8 2 Fire 109 | 6 6 50 47 Melee . | . . . . Ram . | . . . . Kick 4 | . 2 2 . Crush . | . . . . Escape Stasis . | . . . . Rewire . | . . . . Trap . | . . . . Miscellaneous . | . . . . Route ------- -11/Scrapyard -10/Materials (discovered 3 exits: *Mat / [*Min x2]) -9/Materials (discovered 2 exits: *Mat / [*Sto]) -8/Materials History --------- Turn | Location | Event 9 | -11/Scrapyard | Discovered new exit (range 14) 169 | -11/Scrapyard | Entered Materials 315 | -10/Materials | Build established: Mutant 422 | -10/Materials | Discovered new exit (range 12) 474 | -10/Materials | Discovered new exit (range 16) 491 | -10/Materials | Discovered new exit (range 6) 497 | -10/Materials | Entered another Materials area 497 | -9/Materials | Evolved 2 slots: Propulsion x2 677 | -9/Materials | Discovered new exit (range 5) 841 | -9/Materials | Lost 4 parts (2n2w) 869 | -9/Materials | Discovered new exit (range 16) 1010 | -9/Materials | Central database locked down 1071 | -9/Materials | Core integrity fell below 50% 1134 | -9/Materials | Entered another Materials area 1134 | -8/Materials | Evolved 2 slots: Utility x2 1306 | -8/Materials | Lost 6 parts (2p1n1u2w) 1439 | -8/Materials | Core integrity fell below 50% 1484 | -8/Materials | Core integrity fell below 20% 1485 | -8/Materials | Garrison activated, responded to threat 1507 | -8/Materials | Lost 6 parts (1p3n2w) 1540 | -8/Materials | Destroyed by Y-45 Defender with Heavy Assault Rifle Last Messages --------------- Corrupted Blade Saw (87%). >> MONITOR: Recycling Unit M001 accepting Lgt. Nuclear Core (98%). Acquired 63 matter. >> MONITOR: Recycling Unit M001 accepting Surge Thruster (82%). Acquired Aluminum Leg. >> MONITOR: Recycling Unit M001 accepting Surge Thruster (91%). Connecting with Terminal... >>Trojan(Detonate) Trojan loaded successfully. Testing... Scanning machine control network... No applicable machines found. Infected machine control systems. Faulty Hvy. Particle Gun destroyed. Lgt. Ion Engine destroyed. Sml. Storage Unit destroyed. Prc. Beam Rifle destroyed. Map ----- +----------------------------------------------------+ | ??????????????????????????????# # | | ??????????????????????????????# | | ??????????????????????????????########## ### | | ???????????????????????????????????????# | | ???????????????????????????????????????## | | ?????????????????????????????###???????## ### | | ?????????????????????????##### #####???#[ [!! | | ?????????????????????????# #???# %!!! | | ?????????????????????????# """ T #?### | | ????????????????########## """ ###= % | | ????????????????# / """ # = | | ????????????????#*######## """ | | ????????????????#%#??????# """ ! # | | ????????????????#=#??????# # / | | ????????????????# #??????# ! ### ]/[ | | ????????????????# #??????###########?# ^] | | ????????????????# #?????????????????? /[/ | | ????????????????#[#?????????????????? | | ????????????????#Y##+###### ????? | | ????????????????#YY !!! ??? | | ????????????????# g######????????? #"T"# | | ??????????#+##### # #????????? ?"""# | | ??????????# ; ""#????????? ?##?? | | ??????????# !# T"#????????? ?????? | | ??????????#+## "" !# ""#?????????? ??????? | | ?????????????# T" @# #?????????? ??????? | | ?????????????# "" ######?????????????????? | | ?????????????# #??????????????????????? | | ?????????????# ??????????????????????? | | ?????????????+ ??????????????????????? | | ?????????????# ?????????????????????? | | ?????????????### ######?????????????????????? | | ???????????????# ???????????????????????????? | | ???????????????# ???????????????????????????? | | ???????????????#????????????????????????????? | | ????????????????????????????????????????????? | | ????????????????????????????????????????????? | | ????????????????????????????????????????????? | | ????????????????????????????????????????????? | | ????????????????????????????????????????????? | | ????????????????????????????????????????????? | | ????????????????????????????????????????????? | | ????????????????????????????????????????????? | | ????????????????????????????????????????????? | | ????????????????????????????????????????????? | | ????????????????????????????????????????????? | | ????????????????????????????????????????????? | | ????????????????????????????????????????????? | | ????????????????????????????????????????????? | | ????????????????????????????????????????????? | +----------------------------------------------------+ Best States ------------- Heat Dissipation 31 Energy Generation 14 Energy Capacity 280 Matter Stores 300 Matter Capacity 300 Sight Range 18 Robot Scan Range 14 Terrain Scan Density 10 Power Shielding 33 Evasion (%) 55 Item Schematics ----------------- Hover Unit | -9/Materials | Scanalyzed Robot Schematics ------------------ None Fabricated ------------ Nothing Repaired ---------- Nothing Studied --------- Hover Unit | -9/Materials | Hacked Mni. Grenade Launcher | -9/Materials | Hacked Alien Tech Used ----------------- None Achievements -------------- Heavy Suspicion Myspace Quantum Hacking Challenges ------------ None Game ------ Seed CompositePiercelightCycler Manual? 0 Play Time 00:42:04 Cumulative 6.0 hours Start 2026.01.20 @ 17:59:06 End 2026.01.20 @ 18:47:28 Sessions 2 Manual Loads 0 Difficulty Rogue Special Mode None Game No. 9 Rogue 9 Adventurer 0 Explorer 0 Win Type - Total 0 Types 0/0/0/0/0/0/0/0/0/0 Lore% 11 Gallery% 9 Achievement% 13 Wizard Run 0 Options --------- Layout 2 ASCII 0 Keyboard 0 Movement Mouse Keybinds 0 Fullscreen 1 Font 24/Smallcaps Map View 50x44 Zoom Use 0% Tactical HUD 0 Map Filters NONE Filters NONE Steam 1 RUN: 2521f89e-50a7-4a05-8cf5-db67a27357aa